bitfinex/quotes_ETHUSD_20240730
["timestamp","ask_amount","ask_price","bid_price","bid_amount"]
[1722343200726,0.00552283,3354.6,3354.5,12.20739334]
[1722343200861,0.00552283,3354.6,3354.5,15.18846334]
[1722343201061,0.00331572,3354.6,3354.5,15.73846334]
[1722343201258,0.00331572,3354.6,3354.5,12.20739334]
[1722343202824,0.00331572,3354.6,3354.5,6.24525334]
[1722343202992,0.00331572,3354.6,3354.5,0.09133034]
[1722343203379,0.00331572,3354.6,3354.5,0.09116957]
[1722343203827,0.00331572,3354.6,3354.2,5.98133]
[1722343204119,0.00331572,3354.6,3354.5,0.08817371]
[1722343204331,0.00331572,3354.6,3353.9,3.0]
[1722343204498,0.00331572,3354.6,3353.6,2.7825]
[1722343204499,0.00331572,3354.6,3354.5,0.08818101]
[1722343204698,0.00331572,3354.6,3353.7,6.28163]
[1722343205006,0.00331572,3354.6,3353.9,2.9816]
[1722343205209,0.00331572,3354.6,3354.0,3.0]
[1722343205424,0.00331572,3354.6,3354.2,2.98128]
[1722343205625,0.00331572,3354.6,3354.5,5.96214]
[1722343205779,0.00331572,3354.6,3354.5,6.02174489]
[1722343205984,0.00331572,3354.6,3354.5,3.12617228]
[1722343206192,0.00331572,3354.6,3354.5,6.10724228]
[1722343206693,0.00331572,3354.6,3354.5,6.40714228]
[1722343206898,0.00331572,3354.6,3354.5,7.54367808]
[1722343207726,0.00331572,3354.6,3354.5,13.52474808]
[1722343207996,0.00199046,3354.6,3354.5,14.07474808]
[1722343209151,0.00199046,3354.6,3354.5,17.05581808]
[1722343210422,1e-08,3354.6,3354.5,17.05581808]
[1722343210628,1e-08,3354.6,3354.5,19.38591808]
[1722343211571,1e-08,3354.6,3354.5,16.34524319]
[1722343211768,1e-08,3354.6,3354.5,13.36417319]
[1722343211969,1e-08,3354.6,3354.5,12.81417319]
[1722343212667,1e-08,3354.6,3354.5,10.18417319]
[1722343213440,1e-08,3354.6,3354.5,4.22203319]
[1722343213688,1e-08,3354.6,3354.5,7.20310319]
[1722343213870,1e-08,3354.6,3354.5,10.18417319]
[1722343214427,1e-08,3354.6,3354.5,7.20310319]
[1722343214985,1e-08,3354.6,3354.5,4.22203319]
[1722343216142,1e-08,3354.6,3354.5,1.22203319]
[1722343216596,1e-08,3354.6,3354.5,7.20310319]
[1722343216955,1e-08,3354.6,3354.5,4.22203319]
[1722343217154,1e-08,3354.6,3354.5,4.28164075]
[1722343217389,1e-08,3354.6,3354.5,7.26271075]
[1722343219341,1e-08,3354.6,3354.5,7.46271075]
[1722343220002,1e-08,3354.6,3354.5,7.40310319]
[1722343220161,1e-08,3354.6,3354.5,4.42203319]
[1722343220364,1e-08,3354.6,3354.5,3.28549739]
[1722343220764,1e-08,3354.6,3354.5,0.28549739]
[1722343223461,1e-08,3354.6,3354.5,0.48549739]
[1722343224374,1e-08,3354.6,3354.5,0.54511242]
[1722343224572,1e-08,3354.6,3354.5,3.52618242]
[1722343225482,1e-08,3354.6,3354.5,3.87880066]
[1722343225883,1e-08,3354.6,3354.5,3.81918563]
[1722343226085,1e-08,3354.6,3354.5,0.83811563]
[1722343226294,1e-08,3354.6,3354.5,0.48549739]
[1722343227565,1e-08,3354.6,3354.5,0.68549739]
[1722343229064,1e-08,3354.6,3354.5,3.66656739]
[1722343229578,1e-08,3354.6,3354.5,3.7261785]
[1722343229790,1e-08,3354.6,3354.5,6.7072485]
[1722343230163,1e-08,3354.6,3354.5,1.35622224]
[1722343230791,1e-08,3354.6,3354.5,0.68549739]
[1722343231615,0.28127043,3354.6,3354.5,0.68549739]
[1722343231842,0.28127043,3354.6,3354.5,0.94632528]
[1722343235880,0.28127043,3354.6,3354.5,1.14632528]
[1722343236725,1e-08,3354.6,3354.5,1.14632528]
[1722343237474,1e-08,3354.6,3354.5,1.55908581]
[1722343238132,1e-08,3354.6,3354.5,1.61869888]
[1722343238336,1e-08,3354.6,3354.5,10.58083888]
[1722343238485,1e-08,3354.6,3354.5,13.03633888]
[1722343239215,0.00178731,3355.2,3354.5,4.61869888]
[1722343239418,0.00178731,3355.2,3354.5,7.54013581]
[1722343239570,0.00178731,3355.2,3354.6,1.05213658]
[1722343239771,0.00178731,3355.2,3354.7,0.14631184]
[1722343240364,2.98228731,3355.2,3354.7,0.14631184]
[1722343240516,1.56310414,3355.1,3354.7,0.14631184]
[1722343240713,1.56310414,3355.1,3354.5,1.0]
[1722343240714,1.56310414,3355.0,3354.5,1.0]
[1722343240948,1.56310414,3355.0,3354.8,0.14629416]
[1722343241155,1.56310414,3355.1,3354.5,1.0]
[1722343241315,1.56489145,3355.2,3354.9,0.14627648]
[1722343241513,1.56310414,3355.1,3354.5,1.698131]
[1722343241713,1.56310414,3355.1,3354.6,0.05961251]
[1722343241714,1.56323866,3355.1,3354.6,0.05961251]
[1722343241939,1.56323866,3355.1,3354.6,0.14632953]
[1722343242238,0.00178731,3355.2,3354.6,0.20594208]
[1722343242441,0.00178731,3355.2,3354.6,0.14632953]
[1722343242652,2.98222731,3355.2,3354.6,0.14632953]
[1722343242863,0.00178731,3355.2,3354.6,0.92889958]
[1722343243014,0.00178731,3355.2,3354.6,0.98851215]
[1722343243219,4.54550283,3355.2,3354.6,0.92889958]
[1722343243526,4.54550283,3355.2,3354.6,0.14632953]
[1722343243951,2.98057,3355.1,3354.6,0.14632953]
[1722343244198,1.56322552,3355.1,3354.6,0.14632953]
[1722343244482,1.56322552,3354.8,3354.6,0.14632953]
[1722343244838,1.56322552,3354.8,3354.5,1.0]
[1722343245039,1.56322552,3354.8,3354.7,0.14631184]
[1722343245245,1.56322552,3354.8,3354.6,0.14632953]
[1722343245246,2.98089,3354.7,3354.6,0.14632953]
[1722343245545,5.06144485,3354.8,3354.5,1.0]
[1722343245546,2.98098,3354.6,3354.5,1.0]
[1722343245747,4.54426252,3354.6,3354.5,1.0]
[1722343245987,4.54427205,3354.6,3354.5,1.0]
[1722343246187,9.21778483,3354.6,3354.5,1.0]
[1722343246408,10.91238229,3354.6,3354.5,1.0]
[1722343246574,12.7884314,3354.6,3354.5,1.0]
[1722343246960,9.8074514,3354.6,3354.5,1.0]
[1722343247158,2.2632,3354.6,3354.5,1.0]
[1722343247364,3.82613481,3354.6,3354.5,1.0]
[1722343247561,2.2632,3354.6,3354.5,1.0]
[1722343248003,5.24418,3354.6,3354.5,1.0]
[1722343248328,5.30403575,3354.6,3354.5,1.0]
[1722343248466,6.86697056,3354.6,3354.5,1.0]
[1722343248667,5.30403575,3354.6,3354.5,1.0]
[1722343248913,5.24418,3354.6,3354.5,1.0]
[1722343249203,6.80695388,3354.6,3354.5,1.0]
[1722343249720,5.24418,3354.6,3354.5,1.0]
[1722343249918,8.28501575,3354.6,3354.5,1.0]
[1722343250223,6.066687,3354.6,3354.5,1.0]
[1722343250383,6.066687,3354.6,3354.5,1.14683679]
[1722343251002,6.12654275,3354.6,3354.5,1.14683679]
[1722343251177,9.10752275,3354.6,3354.5,1.14683679]
[1722343251403,6.12654275,3354.6,3354.5,1.14683679]
[1722343251609,5.24418,3354.6,3354.5,1.14683679]
[1722343251927,6.80650055,3354.6,3354.5,1.14683679]
[1722343252131,6.80652097,3354.6,3354.5,1.14683679]
[1722343252298,5.24418,3354.6,3354.5,1.14683679]
[1722343252494,8.28501575,3354.6,3354.5,1.14683679]
[1722343252828,13.57252157,3354.6,3354.5,1.0]
[1722343253029,12.46635236,3354.6,3354.5,1.0]
[1722343254339,15.44733236,3354.6,3354.5,1.0]
[1722343254542,17.10350157,3354.6,3354.5,1.0]
[1722343254838,20.10350157,3354.6,3354.5,1.0]
[1722343256093,2.4436,3354.5,3352.7,35.2999]
[1722343256345,2.4436,3353.4,3352.8,0.2999]
[1722343256640,2.98233,3353.1,3352.8,0.2999]
[1722343256824,2.9824,3353.0,3352.9,0.44741468]
[1722343256996,2.9824,3353.0,3352.9,0.2999]
[1722343257543,0.05985575,3353.2,3352.9,0.2999]
[1722343257899,0.05985575,3353.3,3352.6,0.2999]
[1722343258253,0.05985575,3353.3,3352.1,2.3587]
[1722343258254,5.9645,3353.2,3353.1,0.2999]
[1722343258453,6.02435575,3353.2,3353.1,0.2999]
[1722343258754,2.9824,3353.0,3352.1,35.0]
[1722343258967,3.04225575,3353.0,3352.1,37.98318]
[1722343259117,3.04225575,3353.0,3352.2,0.14763861]
[1722343259456,0.05985575,3353.0,3352.2,3.13072861]
[1722343259803,0.05985575,3353.0,3352.3,35.0]
[1722343260152,3.04226575,3353.0,3352.4,0.1482065]
[1722343260555,2.98259,3352.8,3352.4,0.1482065]
[1722343260759,0.05985575,3352.7,3352.4,0.1482065]
[1722343260958,2.9828,3352.6,3352.4,0.1482065]
[1722343261122,3.04269575,3352.5,3352.4,0.1482065]
[1722343261445,3.04272575,3352.5,3351.8,35.0]
[1722343261613,0.05985575,3352.6,3351.9,3.19132641]
[1722343261820,2.98218,3353.3,3352.4,2.98293]
[1722343262012,0.05985575,3353.2,3352.5,0.20783925]
[1722343262217,0.05985575,3353.2,3352.6,35.0]
[1722343262524,7.45,3353.5,3352.8,2.98257]
[1722343262746,2.98182,3353.7,3352.8,2.98257]
[1722343262945,2.98182,3353.7,3352.9,0.14811798]
[1722343263172,2.98226,3353.2,3352.9,35.14811798]
[1722343263477,3.04221575,3353.1,3352.9,0.14811798]
[1722343263824,3.04221575,3353.1,3352.4,35.0]
[1722343263825,2.98236,3353.1,3352.4,35.0]
[1722343264126,2.9821,3353.4,3352.5,0.14818879]
[1722343264365,0.05985575,3353.3,3352.5,0.14818879]
[1722343264578,4.87060066,3354.1,3352.5,0.14818879]
[1722343264579,2.98192,3353.6,3352.6,3.04234865]
[1722343264719,2.98192,3353.6,3352.7,37.9826]
[1722343265042,2.98192,3353.6,3352.7,38.13089601]
[1722343265252,7.45,3353.9,3353.1,2.98228]
[1722343265433,7.45,3353.9,3353.5,3.28183]
[1722343265628,10.43124,3354.3,3353.6,0.14807821]
[1722343265953,7.45,3354.3,3353.6,0.05963105]
[1722343266278,7.45,3354.3,3353.6,0.25963105]
[1722343266770,7.45,3354.3,3353.7,0.14790327]
[1722343266992,7.45,3354.3,3353.8,0.05962753]
[1722343267286,12.36,3354.5,3353.8,0.05962753]
[1722343267287,10.43066,3355.0,3354.0,2.98145]
[1722343267571,3.04057575,3354.9,3354.1,0.05962168]
[1722343267781,0.46383873,3355.0,3354.1,3.18866333]
[1722343267967,3.44451873,3355.0,3354.1,3.18866333]
[1722343268576,3.44451873,3355.0,3354.1,3.12904165]
[1722343268881,0.05985575,3354.9,3354.1,0.14767165]
[1722343269030,2.98121,3354.4,3354.1,0.14767165]
[1722343269227,3.04069575,3354.8,3353.7,35.05962711]
[1722343269430,3.04069575,3354.8,3353.8,3.18884946]
[1722343269431,2.98084,3354.8,3353.8,3.18884946]
[1722343269728,2.9809,3354.7,3353.8,3.18884946]
[1722343269930,2.9809,3354.7,3353.8,4.39212741]
[1722343270284,2.98228731,3355.2,3354.3,2.98119]
[1722343270578,2.98228731,3355.2,3354.4,0.05961625]
[1722343270579,0.00178731,3355.2,3354.4,0.05961625]
[1722343270730,0.00178731,3355.2,3354.4,3.12811607]
[1722343270936,3.05080019,3355.2,3354.4,0.14698607]
[1722343271232,2.98064,3355.0,3354.5,35.0]
[1722343271471,3.04062575,3354.9,3354.6,0.1469507]
[1722343271772,2.98089,3354.7,3354.6,0.1469507]
[1722343271977,3.04074575,3354.7,3353.9,35.0]
[1722343272175,3.64288733,3354.7,3353.9,35.0]
[1722343272481,0.66199733,3354.7,3354.0,0.20657259]
[1722343272641,2.98078,3354.9,3354.0,0.20657259]
[1722343272642,2.98058,3355.1,3354.1,2.98135]
[1722343272846,6.03124019,3355.2,3354.3,2.98124]
[1722343273186,3.05080019,3355.2,3354.5,3.27996]
[1722343273386,0.00178731,3355.2,3354.5,3.27996]
[1722343273680,0.00178731,3355.2,3354.6,0.14689222]
[1722343274695,0.00178731,3355.2,3354.0,2.3891]
[1722343274696,2.98068,3355.0,3354.0,2.3891]
[1722343274991,2.98068,3355.0,3354.7,0.14677953]
[1722343275154,0.30423231,3354.9,3354.1,3.28031]
[1722343275348,0.36408806,3354.9,3354.0,2.3891]
[1722343275546,0.36408806,3354.9,3354.2,0.14686796]
[1722343275859,2.98102,3354.6,3354.3,0.14685027]
[1722343276061,0.65604375,3354.5,3353.7,3.0]
[1722343276244,3.04096575,3354.5,3353.8,0.14694602]
[1722343276447,2.98116,3354.4,3353.8,0.14694602]
[1722343276649,0.05985575,3354.3,3353.8,0.14694602]
[1722343276946,0.05985575,3354.3,3353.6,0.6]
[1722343276947,3.04111575,3354.3,3353.6,0.6]
[1722343277191,2.98151,3354.0,3353.9,0.14692833]
[1722343277495,2.98151,3354.0,3353.6,0.6]
[1722343277678,0.05985575,3353.9,3353.6,0.6]
[1722343278046,0.05985575,3353.9,3353.7,0.14210552]
[1722343278251,3.04151575,3353.9,3353.7,0.14210552]
[1722343278476,0.60230258,3353.8,3353.6,0.6]
[1722343278687,1.34822823,3354.6,3353.6,0.6]
[1722343278688,2.98121,3354.4,3353.6,0.6]
[1722343278888,4.32925823,3354.6,3353.6,0.6]
[1722343278889,0.79822823,3354.6,3353.6,0.6]
[1722343279195,3.77928823,3354.6,3353.7,0.44100552]
[1722343279495,3.77928823,3354.6,3353.7,3.42277552]
[1722343279853,3.77920823,3354.6,3353.7,3.42277552]
[1722343280055,10.43092,3354.7,3353.8,3.34016975]
[1722343280360,0.30423231,3354.9,3354.0,0.2989]
[1722343280683,0.30423231,3354.9,3353.7,0.94035775]
[1722343280684,0.30423231,3354.9,3354.2,2.98132]
[1722343280849,10.43053,3355.1,3354.2,2.98132]
[1722343281190,2.98076,3354.9,3354.3,0.14195918]
[1722343281370,0.05985575,3355.0,3354.3,0.14195918]
[1722343281577,0.05985575,3354.8,3354.3,0.14195918]
[1722343281782,0.05985575,3354.8,3354.1,0.2989]
[1722343281948,0.05985575,3354.8,3354.4,0.14194149]
[1722343282147,0.05985575,3354.8,3354.2,0.05962063]
[1722343282390,2.98062,3355.0,3354.2,0.05962063]
[1722343282591,0.05985575,3354.9,3354.3,0.14195918]
[1722343283397,2.98081,3354.8,3354.3,0.14195918]
[1722343283558,0.05985575,3354.7,3353.9,3.28042]
[1722343283752,0.05985575,3354.7,3354.4,0.14194149]
[1722343283984,0.05985575,3354.7,3353.9,0.2989]
[1722343284184,2.98102,3354.6,3354.5,0.14192381]
[1722343284499,2.98107,3354.5,3353.9,0.2989]
[1722343284793,0.05985575,3354.5,3353.9,0.2989]
[1722343284997,2.98125,3354.3,3353.8,0.2]
[1722343285228,0.05985575,3354.2,3353.8,0.2]
[1722343286214,2.98103,3354.6,3353.8,3.24130193]
[1722343286215,0.05985575,3354.6,3353.8,3.24130193]
[1722343286851,6.02194575,3354.6,3353.8,0.2]
[1722343287057,2.98108,3354.5,3353.8,0.2]
[1722343287403,2.98116,3354.4,3353.8,0.2]
[1722343288355,0.05985575,3354.5,3353.8,0.2]
[1722343288356,3.04092575,3354.5,3353.8,0.2]
[1722343288585,0.05985575,3354.5,3353.8,0.2]
[1722343289652,4.32817458,3354.6,3353.8,0.2]
[1722343289653,7.45,3354.7,3354.0,2.98151]
[1722343289857,7.45,3354.7,3354.2,5.37448]
[1722343290060,7.45,3354.7,3354.3,0.0596176]
[1722343290356,10.43223731,3355.2,3354.3,3.0408376]
[1722343290573,2.98058,3355.1,3354.3,0.0596176]
[1722343290797,2.98072,3354.9,3354.3,0.0596176]
[1722343292072,0.06164306,3355.2,3354.3,0.0596176]
[1722343292073,2.98068,3355.0,3354.3,0.0596176]
[1722343292379,3.28491231,3355.0,3354.3,0.0596176]
[1722343292598,2.98072,3354.9,3354.3,0.0596176]
[1722343292903,0.36408806,3355.0,3354.2,2.3932]
[1722343293077,2.98081,3354.8,3354.2,2.3932]
[1722343293772,2.98081,3354.8,3353.9,0.2989]
[1722343293773,2.98103,3354.6,3353.9,0.2989]
[1722343293973,2.98111,3354.5,3353.9,0.2989]
[1722343294191,2.98111,3354.5,3353.8,2.6579]
[1722343294373,5.96226,3354.5,3353.8,2.6579]
[1722343294604,2.981,3354.6,3353.8,2.6579]
[1722343294805,2.98126,3354.3,3353.8,2.6579]
[1722343294983,1.0431,3354.6,3353.8,2.71752649]
[1722343295174,2.98107,3354.5,3353.9,0.14188742]
[1722343295593,3.04095575,3354.5,3353.9,0.14188742]
[1722343295791,2.98116,3354.4,3353.9,0.14188742]
[1722343295977,0.05985575,3354.3,3353.9,0.14188742]
[1722343296177,4.0241,3354.6,3353.9,0.20151286]
[1722343296830,2.98108,3354.5,3353.9,0.20151286]
[1722343297559,1.0431,3354.6,3353.9,0.20151286]
[1722343297933,4.0241,3354.6,3353.9,0.20151286]
[1722343298954,7.00514,3354.6,3353.9,0.20151286]
[1722343299171,4.0241,3354.6,3353.9,0.20151286]
[1722343299465,1.0431,3354.6,3353.9,0.20151286]
[1722343299643,3.28490231,3355.0,3353.9,0.20151286]
[1722343299644,2.98081,3354.8,3353.9,0.20151286]
[1722343299952,2.98098,3354.6,3353.9,0.20151286]
[1722343300389,2.98081,3354.8,3353.9,0.20151286]
[1722343300582,0.05985575,3354.7,3353.9,3.18310286]
[1722343300742,0.05985575,3354.7,3353.9,0.20151286]
[1722343300948,1.13934556,3354.7,3353.9,0.20151286]
[1722343301148,1.13934556,3354.7,3353.9,0.14188742]
[1722343301655,2.48038731,3355.2,3354.2,2.98133]
[1722343301656,2.98228731,3355.2,3354.2,2.98133]
[1722343301855,0.00178731,3355.2,3354.3,3.1827629]
[1722343302054,0.00178731,3355.2,3354.5,2.98102]
[1722343302309,0.00178731,3355.2,3354.5,3.04063423]
[1722343302447,0.00178731,3355.2,3354.6,0.14181111]
[1722343303294,2.58699062,3355.2,3354.7,2.4185]
[1722343303472,3.04042575,3355.1,3354.6,0.14181111]
[1722343303674,0.05985575,3355.1,3354.7,0.1417167]
[1722343303976,3.04039575,3355.1,3354.4,0.2989]
[1722343304151,3.04039575,3355.1,3354.8,0.14169902]
[1722343304352,0.05985575,3355.1,3354.5,0.05961415]
[1722343304552,0.00178731,3355.2,3354.5,0.93227057]
[1722343304752,0.00178731,3355.2,3354.6,0.14173438]
[1722343305089,0.06164306,3355.2,3354.6,0.14173438]
[1722343305247,0.06164306,3355.2,3354.7,0.05961418]
[1722343305248,0.00178731,3355.2,3354.7,0.05961418]
[1722343305457,0.00178731,3355.2,3354.9,2.9807]
[1722343305678,0.00178731,3355.2,3355.0,0.14166366]
[1722343305951,0.00178731,3355.2,3355.0,2.61206366]
[1722343306764,0.00178731,3355.2,3355.0,3.53499288]
[1722343307351,0.00178731,3355.2,3355.1,2.98053]
[1722343307550,0.00178731,3355.2,3355.1,3.04013463]
[1722343307803,0.00178731,3355.2,3355.1,6.46088548]
[1722343308909,0.00178731,3355.2,3355.1,3.42075085]
[1722343309057,0.00178731,3355.2,3355.1,1.41373006]
[1722343309254,0.00178731,3355.2,3355.1,0.44022085]
[1722343309879,0.00178731,3355.2,3355.1,3.48035434]
[1722343310394,0.00178731,3355.2,3355.1,0.49982434]
[1722343310603,0.00178731,3355.2,3355.1,0.44022085]
[1722343311154,0.00178731,3355.2,3355.1,6.40128085]
[1722343311354,0.00178731,3355.2,3355.1,10.58652594]
[1722343312759,0.00178731,3355.2,3355.1,10.78652594]
[1722343313852,0.00178731,3355.2,3355.1,7.80599594]
[1722343314069,0.19235749,3355.9,3355.1,6.61478558]
[1722343314292,0.19235749,3355.9,3355.3,0.2989]
[1722343314593,0.19235749,3355.9,3355.4,0.14106898]
[1722343314772,3.17219749,3355.9,3355.1,3.2]
[1722343315095,3.17217749,3355.9,3355.1,3.2]
[1722343315265,4.03284924,3355.9,3355.1,3.2]
[1722343315509,2.97992,3355.8,3355.2,0.14110433]
[1722343315703,0.05985575,3355.7,3355.2,0.14110433]
[1722343316115,0.19235749,3355.9,3355.2,3.12154433]
[1722343317606,0.19235749,3355.9,3355.2,3.12149433]
[1722343317925,0.13250174,3355.9,3355.3,2.9803]
[1722343318423,0.13250174,3355.9,3355.4,0.14072201]
[1722343318812,0.13250174,3355.9,3355.1,3.67934]
[1722343318813,0.05985575,3355.8,3355.1,0.6989]
[1722343319136,0.05985575,3355.8,3355.2,0.14075736]
[1722343319540,2.98013,3355.6,3355.2,0.14075736]
[1722343319713,3.04008575,3355.5,3355.2,0.14075736]
[1722343320140,0.05985575,3355.5,3355.2,0.14075736]
[1722343320845,2.98028,3355.4,3355.2,0.14075736]
[1722343321047,0.13250174,3355.9,3355.2,0.14075736]
[1722343321048,0.13250174,3355.9,3355.2,3.12119736]
[1722343321246,0.14235749,3355.9,3355.3,0.40200974]
[1722343321665,0.08250174,3355.9,3355.4,0.13596578]
[1722343321879,0.08250174,3355.9,3355.4,3.11618578]
[1722343322086,0.08250174,3355.9,3355.4,3.03981885]
[1722343322375,0.08250174,3355.9,3355.5,0.13594811]
[1722343322672,0.08250174,3355.9,3355.5,0.79176378]
[1722343323730,0.08250174,3355.9,3355.6,2.98009]
[1722343324043,0.08250174,3355.9,3355.8,2.97991]
[1722343324249,0.08250174,3355.9,3355.8,6.01940984]
[1722343324473,0.08250174,3355.9,3355.8,3.17528904]
[1722343324786,0.08250174,3355.9,3355.8,7.34763951]
[1722343325135,0.08250174,3355.9,3355.8,7.54763951]
[1722343325336,0.08250174,3355.9,3355.8,4.56772951]
[1722343326031,0.08250174,3355.9,3355.8,7.54763951]
[1722343326475,0.08250174,3355.9,3355.8,4.50813967]
[1722343326681,0.08250174,3355.9,3355.8,7.54763429]
[1722343326905,0.08250174,3355.9,3355.8,13.52754429]
[1722343327259,0.03250174,3355.9,3355.8,13.52754429]
[1722343327459,0.02223236,3355.9,3355.8,13.52754429]
[1722343327660,0.01133236,3355.9,3355.8,13.52754429]
[1722343327863,7.44846331,3356.8,3356.5,2.97926]
[1722343328187,2.97854,3357.4,3356.5,2.97926]
[1722343328188,7.44846331,3357.4,3356.6,0.13526455]
[1722343328371,0.05985575,3357.3,3356.6,0.63324055]
[1722343328576,7.44846331,3357.4,3356.6,3.61237055]
[1722343328779,7.44846331,3357.4,3357.1,2.97871]
[1722343328977,2.4344,3358.0,3356.7,5.97905]
[1722343329193,3.03795575,3357.9,3357.2,0.13492867]
[1722343329359,3.03795575,3357.9,3356.7,3.2989]
[1722343329360,2.97828,3357.7,3356.7,3.2989]
[1722343329564,3.03821575,3357.6,3357.3,0.13491102]
[1722343329806,3.03821575,3357.6,3356.7,3.2989]
[1722343329807,0.05985575,3357.6,3356.7,6.27798]
[1722343329975,2.97828,3357.7,3356.9,3.27783]
[1722343329976,0.05985575,3357.7,3356.9,3.27783]
[1722343330175,0.05985575,3357.7,3356.8,0.1349993]
[1722343330391,2.97836,3357.6,3357.0,0.13496398]
[1722343330605,2.97836,3357.6,3356.8,0.36329753]
[1722343330606,0.05985575,3357.5,3356.9,0.13498164]
[1722343330806,2.9785,3357.4,3357.1,0.13494633]
[1722343331012,2.9785,3357.4,3357.0,0.13496398]
[1722343331225,2.9785,3357.4,3357.2,0.13492867]
[1722343331428,0.05985575,3357.5,3357.2,2.3324]
[1722343331636,2.9777,3358.3,3357.3,0.44121147]
[1722343331800,2.97792,3358.1,3357.3,0.38164565]
[1722343331990,0.05985575,3358.0,3357.3,0.38164565]
[1722343332540,5.43585,3358.5,3357.3,3.22526463]
[1722343332541,2.97775,3358.3,3357.3,3.22526463]
[1722343332829,0.05985575,3358.2,3357.4,3.86195546]
[1722343333034,2.4921,3359.0,3357.4,1.37666264]
[1722343333343,2.97702,3359.1,3357.4,1.37666264]
[1722343333344,3.1228206,3359.3,3358.4,2.9776]
[1722343333628,0.1460106,3359.3,3358.5,0.625422]
[1722343333828,0.1460106,3359.3,3358.5,0.13449128]
[1722343334033,2.97707,3359.0,3358.5,0.13449128]
[1722343334239,0.05985575,3358.9,3358.5,0.13449128]
[1722343334458,0.1460106,3359.3,3358.3,2.97764]
[1722343334740,3.1228706,3359.3,3358.4,2.97755]
[1722343334921,0.1460106,3359.3,3358.5,0.05954385]
[1722343335124,0.1460106,3359.3,3358.9,2.97714]
[1722343335289,0.1460106,3359.3,3359.0,0.1939386]
[1722343336029,0.1460106,3359.3,3359.0,0.13440308]
[1722343336395,0.1460106,3359.3,3358.7,2.97726]
[1722343336741,0.1460106,3359.3,3358.8,0.565916]
[1722343336906,0.1460106,3359.3,3358.8,0.70035436]
[1722343337430,0.1460106,3359.3,3358.8,0.13443836]
[1722343338005,0.1460106,3359.3,3358.8,0.43333836]
[1722343338743,0.1460106,3359.3,3358.9,0.2989]
[1722343338950,0.1460106,3359.3,3359.0,2.97701]
[1722343339094,0.1460106,3359.3,3359.1,2.97696]
[1722343339444,0.1460106,3359.3,3359.2,0.13336498]
[1722343340804,0.1460106,3359.3,3359.2,5.55408339]
[1722343341047,0.1460106,3359.3,3359.2,8.82987339]
[1722343341542,0.08790998,3359.3,3359.2,8.82987339]
[1722343341752,0.02980992,3359.3,3359.2,8.82987339]
[1722343342040,0.02980992,3359.3,3359.2,12.6498255]
[1722343342201,0.02980992,3359.3,3359.2,15.6498255]
[1722343343195,0.02980992,3359.3,3359.2,18.6267155]
[1722343343396,0.02,3360.0,3359.9,13.12351]
[1722343343696,0.02,3360.0,3359.9,19.38675156]
[1722343343921,0.02,3360.0,3359.9,19.98228456]
[1722343344311,2.97436,3362.1,3361.0,0.2989]
[1722343344654,2.5148106,3362.6,3361.1,0.1330301]
[1722343344655,2.97467,3361.8,3361.1,0.1330301]
[1722343344813,2.97469,3361.7,3361.1,0.1330301]
[1722343344999,2.97489,3361.5,3361.1,0.1330301]
[1722343345203,0.05985575,3362.3,3361.1,0.1330301]
[1722343345204,3.03458575,3361.7,3361.1,0.1330301]
[1722343345521,3.03429575,3362.0,3361.2,0.2989]
[1722343345732,0.25148106,3362.5,3361.3,0.13155938]
[1722343345733,2.97418,3362.3,3361.3,0.13155938]
[1722343345940,2.97418,3362.3,3361.2,3.27396]
[1722343346119,3.03394575,3362.4,3361.3,0.96712203]
[1722343346302,3.03394575,3362.4,3361.4,0.13154177]
[1722343346303,0.05985575,3362.3,3361.4,0.13154177]
[1722343346504,2.97409,3362.4,3361.5,0.05948535]
[1722343346754,2.97424,3362.2,3361.6,0.13150655]
[1722343347052,0.05985575,3362.3,3361.6,0.13150655]
[1722343347217,2.97412,3362.4,3361.4,3.27382]
[1722343347218,2.97407,3362.4,3361.4,3.27382]
[1722343347421,0.25148106,3362.5,3361.7,0.13148894]
[1722343347749,2.5148106,3362.6,3361.8,0.19095848]
[1722343347750,0.1460106,3362.6,3361.8,0.19095848]
[1722343348049,0.1460106,3362.6,3361.9,0.2989]
[1722343348351,0.1460106,3362.6,3361.8,0.13147133]
[1722343348352,0.1460106,3362.6,3362.5,5.94794]
[1722343348561,0.1460106,3362.6,3362.5,6.24684]
[1722343348708,0.1460106,3362.6,3362.5,6.3766958]
[1722343348908,0.1460106,3362.6,3362.5,7.01436538]
[1722343349110,0.1460106,3362.6,3362.5,9.46646538]
[1722343349413,0.46476875,3365.4,3362.5,9.46646538]
[1722343349414,2.97024,3366.8,3364.7,2.4521]
[1722343349573,3.25302502,3369.3,3364.3,3.13]
[1722343349574,2.96904,3368.1,3366.7,3.13]
[1722343349773,3.14410297,3370.2,3366.5,3.4773]
[1722343349774,2.96801,3369.3,3367.9,4.15284002]
[1722343349922,0.00110297,3370.2,3367.9,8.84106099]
[1722343350115,0.00110297,3370.2,3368.4,2.9687]
[1722343350368,0.00110297,3370.2,3367.9,1.5]
[1722343350369,2.96830297,3370.2,3368.5,0.12439256]
[1722343350614,2.96834,3368.9,3367.1,2.96987]
[1722343350865,0.296834,3368.8,3368.6,0.12022861]
[1722343351030,2.96892,3368.3,3366.3,2.2922]
[1722343351232,0.1460106,3369.2,3365.5,1.5]
[1722343351233,2.96873,3368.5,3365.5,1.5]
[1722343351433,2.9694,3367.7,3365.8,3.13]
[1722343351617,2.96838,3368.9,3365.8,3.13]
[1722343351618,1.5,3371.5,3365.8,3.13]
[1722343351817,2.9695,3367.6,3365.4,3.13]
[1722343352066,3.1547063,3369.2,3365.4,3.13]
[1722343352067,0.29695,3367.5,3365.4,3.13]
[1722343352216,2.9702,3366.8,3365.3,2.97148]
[1722343352417,2.96919,3368.0,3365.1,2.2922]
[1722343352418,2.97027,3366.7,3365.2,3.27049]
[1722343352665,2.97035,3366.6,3365.2,0.2989]
[1722343352871,2.96964,3367.5,3365.5,1.5]
[1722343353047,2.96964,3367.5,3366.0,2.97088]
[1722343353048,3.266534,3367.5,3366.0,2.97088]
[1722343353219,3.266534,3367.5,3365.8,2.97097]
[1722343353220,2.96973,3367.3,3365.8,2.97097]
[1722343353416,0.296964,3367.5,3366.1,0.10115274]
[1722343353619,0.296964,3367.5,3365.5,4.47129]
[1722343353620,2.96974,3367.3,3365.9,3.07215786]
[1722343353944,2.96982,3367.2,3366.0,0.1011703]